Cogmind - Beta 16 @@@ ROGUE MODE // 2025.12.23 @ 13:38:33 Player: winnking222 Result: Destroyed by G-47 Trooper with Particle Gun Performance ------------- Evolutions (0) 0 Regions Visited (3) 600 Robots Destroyed (39) 195 Value Destroyed (793) 793 Prototype IDs (13) 260 Alien Tech Used (0) 0 Bonus (60) 60 TOTAL SCORE: 1908 Bonus ------- Follower Combat Kills 60 Cogmind --------- Core Integrity 0/250 Matter 276/300 Energy 160/160 System Corruption 2% Temperature Cool (9) Movement Treading (240) Ox1 Location -10/Subcaves Parts ------- > --- POWER (1) -------- Light Nuclear Core > --- PROPULSION (2) --- Light Treads Light Treads > --- UTILITY (2) ------ High-capacity Storage Unit Structural Scanner > --- WEAPON (2) ------- Improved Medium Laser (fused) Subdweller Machine Gun > --- INVENTORY (20) --- Wheel Subdweller Monowheel Improved Heat Sink Huge Storage Unit High-capacity Matter Pod (200) Subdweller Optics Subdweller Optics Subdweller Optics Experimental Sensor Array Seismic Detector Scrap Shield Particle Gun Particle Gun Improved Medium Laser Beam Cannon Powered Cannon Subdweller Machine Gun Rocket Launcher Peak State ------------ > --- POWER ------------ Light Nuclear Core > --- PROPULSION ------- Light Treads Light Treads > --- UTILITY ---------- High-capacity Storage Unit Structural Scanner > --- WEAPON ----------- Improved Medium Laser Improved Medium Laser > --- INVENTORY -------- Aluminum Leg Wheel Improved Heat Sink Huge Storage Unit High-capacity Matter Pod Subdweller Optics Subdweller Optics Subdweller Optics Experimental Sensor Array Seismic Detector Particle Gun Particle Gun Particle Gun Particle Gun Light EM Pulse Cannon Beam Cannon Powered Cannon Subdweller Machine Gun Rocket Launcher [Rating: 18] Favorites ----------- Power Ion Engine Engine Ion Engine Power Core Light Nuclear Core Propulsion Light Treads Treads Light Treads Leg Aluminum Leg Wheel Subdweller Monowheel Utility High-capacity Storage Unit Device Seismic Detector Storage High-capacity Storage Unit Protection Light Armor Plating Weapon Improved Medium Laser Energy Gun Improved Medium Laser Energy Cannon Subdweller Beam Cannon Ballistic Gun Light Assault Rifle Build | -11 -10 -10 -10 ------- Run | Yrd Mat Min Sub Slots Evolved . | . . . . Power . | . . . . Propulsion . | . . . . Utility . | . . . . Weapon . | . . . . Parts Attached 39 | 7 11 6 15 Power 6 | 1 1 1 3 Engine 5 | 1 1 1 2 Core 1 | . . . 1 Reactor . | . . . . Propulsion 10 | 2 2 1 5 Treads 6 | . 2 1 3 Leg 2 | 2 . . . Wheel 2 | . . . 2 Hover . | . . . . Flight . | . . . . Utility 10 | 2 3 3 2 Device 5 | 1 . 2 2 Storage 4 | 1 3 . . Processor . | . . . . Hackware . | . . . . Protection 1 | . . 1 . Artifact . | . . . . Weapon 13 | 2 5 1 5 Energy Gun 3 | . 2 . 1 Energy Cannon 2 | . . . 2 Ballistic Gun 8 | 2 3 1 2 Ballistic Cannon . | . . . . Launcher . | . . . . Special Weapon . | . . . . Impact Weapon . | . . . . Slashing Weapon . | . . . . Piercing Weapon . | . . . . Special Melee Weapon . | . . . . Unidentified Prototypes 1 | . 1 . . Parts Lost 8 | . 2 3 3 Power 2 | . 1 1 . Propulsion 2 | . . . 2 Utility 2 | . . 2 . Weapon 2 | . 1 . 1 Highest Loss Streak 2 | . 2 2 2 To Critical Strikes 1 | . . . 1 Average Backups 17 | 5 13 19 18 Power . | . . . . Propulsion 3 | 3 3 3 3 Utility 5 | . 2 4 7 Weapon 8 | . 6 9 8 Tool/Special . | . . . . Unused Backups 19 | . 1 1 17 Power . | . . . . Propulsion 4 | . 1 . 3 Utility 6 | . . . 6 Weapon 9 | . . 1 8 Tool/Special . | . . . . Average Slot Usage (%) 99 | . 98 99 99 Engine 11 | . 13 14 9 Core 2 | . . . 4 Treads 24 | . 22 28 23 Leg 1 | . 5 . . Wheel 2 | . . . 4 Device 13 | . 13 11 14 Storage 14 | . 14 14 14 Energy Gun 14 | . 3 14 19 Energy Cannon 2 | . . . 4 Ballistic Gun 10 | . 23 14 4 Peak Build Rating 18 | 7 11 14 18 Average Rating 13 | 5 8 11 15 On Entrance 8 | . 7 11 14 Avg Prop Armor Cover (%) 13 | . . . 13 Naked Turns . | . . . . Heaviest Build 89 | 12 89 52 57 Greatest Support 40 | 20 40 40 40 Greatest Overweight (x) 3 | . 3 1 2 Average Overweight (x) 1 | . . 1 1 Largest Inventory Capacity 25 | 8 25 20 20 Average Capacity 19 | 7 18 20 20 Most Carried 20 | 8 18 20 20 Average Carried 17 | 5 13 19 19 Final Capacity 20 | 8 20 20 20 Final Carried 20 | 7 18 19 20 Class Distribution -------------------- 100% | Mutant Dominant Class ---------------- Mutant | -10/Materials Mutant | -10/Mines Mutant | -10/Subcaves Resources | -11 -10 -10 -10 ----------- Run | Yrd Mat Min Sub Matter Collected 1201 | 294 491 144 272 Remotely . | . . . . Salvage Created 1104 | 114 379 253 358 Parts 81 | 6 36 20 19 Haulers Intercepted 1 | . 1 . . Recyclers Shooed . | . . . . Parts Field Recycled . | . . . . Retrieved Matter . | . . . . Parts Self-Destructed 3 | . . . 3 Prevented . | . . . . Parts Restored . | . . . . Kills | -11 -10 -10 -10 ------- Run | Yrd Mat Min Sub Combat Hostiles Destroyed 30 | . 12 9 9 Guns 24 | . 12 9 3 Cannons 5 | . . . 5 Classes Destroyed 9 | 2 5 . 2 Worker 1 | . 1 . . Tunneler 3 | 2 1 . . Hauler 1 | . 1 . . Recycler 2 | 1 1 . . Watcher 2 | . 2 . . Swarmer 16 | . 11 5 . Grunt 6 | . 1 4 1 Sentry 1 | . . . 1 Subdweller 7 | . . . 7 Best Kill Streak 6 | 2 6 3 2 Combat Bots Only 3 | . 3 3 2 Max Kills in Single Turn 1 | 1 1 1 1 Gunslinging . | . . . . Exploded . | . . . . Melee . | . . . . Uniques/NPCs Destroyed . | . . . . Combat | -11 -10 -10 -10 -------- Run | Yrd Mat Min Sub Hostile Shots Fired 165 | . 83 33 49 Missed 43 | . 23 6 14 Hits 122 | . 60 27 35 Projectile 122 | . 60 27 35 AOE 1 | . 1 . . Critical Strikes 3 | . 1 . 2 Damage Taken 1504 | . 567 282 655 Core 258 | . 99 65 94 Absorbed by Shields . | . . . . Core Remaining (%) 100 | 100 . . . Volleys Fired 149 | 6 48 14 81 Largest 2 | 2 2 2 2 Hottest 136 | 40 76 76 136 Shots Fired 260 | 12 96 30 122 Gun 202 | 12 96 30 64 Cannon 58 | . . . 58 Launcher . | . . . . Special . | . . . . Kinetic 133 | 12 87 15 19 Thermal 127 | . 9 15 103 Explosive . | . . . . Electromagnetic . | . . . . Robot Hit Streak 10 | 3 5 5 10 Robot Miss Streak 4 | 2 4 3 3 Penetration Max . | . . . . Secondary Targets 4 | . 3 1 . Max Gunslinging Chain 1 | . 1 1 . Shots Hit Robots 109 | 6 46 16 41 Core Hits 51 | 4 23 11 13 Critical Kills 1 | . 1 . . Critical Parts Destroyed . | . . . . Critical Strikes 5 | . 1 . 4 Burn 4 | . . . 4 Destroy 1 | . 1 . . Melee Attacks . | . . . . Impact . | . . . . Slashing . | . . . . Piercing . | . . . . Sneak Attacks . | . . . . Combat Hostiles . | . . . . Follow-up Attacks . | . . . . Damage Inflicted 1561 | 71 510 237 743 Guns 1268 | 71 504 237 456 Cannons 287 | . . . 287 Explosions . | . . . . Melee . | . . . . Ramming 6 | . 6 . . Kinetic 603 | 71 435 47 50 Thermal 952 | . 69 190 693 Explosive . | . . . . Electromagnetic . | . . . . Impact . | . . . . Slashing . | . . . . Piercing . | . . . . Highest Corruption 2 | . 2 2 2 Average Corruption 2 | . 2 2 2 Corruption Purged . | . . . . Corruption Blocked . | . . . . Effects 63 | . 1 13 49 Message Errors 17 | . . 2 15 Matter Fused 14 | . 1 3 10 Heat Flow Errors 5 | . . 1 4 Energy Discharges 4 | . . 1 3 Parts Fused 1 | . . . 1 Data Loss (minor) 7 | . . 2 5 Data Loss (major) 6 | . . 1 5 Misfires 7 | . . 2 5 Alerts 2 | . . 1 1 Overload Shots . | . . . . Overflow Damage . | . . . . Projectiles . | . . . . Explosions . | . . . . Melee . | . . . . Knockbacks . | . . . . Impact . | . . . . Kinetic . | . . . . Secondary . | . . . . Self-Inflicted Damage . | . . . . Shots . | . . . . Rammed . | . . . . Targets Rammed 1 | . 1 . . Kicked . | . . . . Crushed 1 | . 1 . . Highest Temperature 208 | . 75 121 208 Average Temperature 38 | . 25 40 41 Received Heat Transfer 276 | . 24 108 144 Siege Activations . | . . . . Martial Activations . | . . . . Shielding Activations . | . . . . Robots Disrupted . | . . . . Combat Hostiles . | . . . . Robots Corrupted . | . . . . Combat Hostiles . | . . . . Parts Fried . | . . . . Impact Corruptions . | . . . . Robots Melted 1 | . . . 1 Combat Hostiles 1 | . . . 1 Parts Melted 3 | . . 1 2 Heat Transferred 2183 | . 148 407 1628 Parts Sabotaged . | . . . . Parts Stolen . | . . . . Parts Stripped . | . . . . Power Chain Reactions . | . . . . Alert | -11 -10 -10 -10 ------- Run | Yrd Mat Min Sub Maximum Alert Level . | . . . . Low Security (%) 100 | 100 100 100 . Level 1 . | . . . . Level 2 . | . . . . Level 3 . | . . . . Level 4 . | . . . . Level 5 . | . . . . High Security . | . . . . Max Security . | . . . . Peak Influence 119 | 5 119 70 . Initial 10 | . . 10 . Average 29 | . 44 17 . Influence Increases 757 | 15 424 278 40 Destroy 0b10 Robot/C 500 | . 240 220 40 Destroy 0b10 Robot/NC 45 | 15 30 . . Destroy Leader 106 | . 56 50 . Allied During Kill 8 | . . 8 . Successful Hack 23 | . 23 . . Disable Machine 15 | . 15 . . Lose Combat Pursuer 60 | . 60 . . Influence Decreases 757 | 15 396 306 40 Entered New Map 18 | . . 18 . Time Decay 699 | 15 376 268 40 Lost Part 40 | . 20 20 . Squads Dispatched 2 | . 2 . . Investigation 1 | . 1 . . Extermination . | . . . . Reinforcement 1 | . 1 . . Assault . | . . . . Garrison . | . . . . Intercept . | . . . . Searches Triggered . | . . . . Construction Impeded . | . . . . Haulers Reinforced . | . . . . Active Scanning Responses . | . . . . Cargo Convoy Interrupts . | . . . . Stealth | -11 -10 -10 -10 --------- Run | Yrd Mat Min Sub Distress Signals 3 | . 3 . . Communications Jammed . | . . . . Distress Signals . | . . . . Times Spotted 53 | . 31 11 11 Peak Tracking Total 4 | . 4 3 2 Tactical Retreats 3 | . 3 . . Traps | -11 -10 -10 -10 ------- Run | Yrd Mat Min Sub Traps Triggered 6 | . 6 . . Indirectly . | . . . . Trap Hack Attempts . | . . . . Triggered . | . . . . Disarmed . | . . . . Reprogrammed . | . . . . Reused . | . . . . Traps Extracted . | . . . . Installed . | . . . . Triggered . | . . . . Machines | -11 -10 -10 -10 ---------- Run | Yrd Mat Min Sub Machines Disabled 2 | . 1 . 1 Max in Single Turn 1 | . 1 . 1 Machines Repaired . | . . . . Machines Dismantled . | . . . . Machines Sabotaged . | . . . . Overloaded Fab Kills . | . . . . Hacking | -11 -10 -10 -10 --------- Run | Yrd Mat Min Sub Machines Accessed 7 | . 6 . 1 Terminals 6 | . 6 . . Fabricators . | . . . . Repair Stations . | . . . . Recycling Units . | . . . . Scanalyzers . | . . . . Garrison Access . | . . . . Total Hacks 19 | . 18 . 1 Successful 16 | . 15 . 1 Failed 3 | . 3 . . Catastrophic . | . . . . Database Lockouts . | . . . . Manual 14 | . 14 . . Terminals 18 | . 18 . . Fabricators . | . . . . Repair Stations . | . . . . Recycling Units . | . . . . Scanalyzers . | . . . . Garrison Access . | . . . . Terminal Hacks 6 | . 5 . 1 Part Schematic 2 | . 2 . . Emergency Access Points 2 | . 2 . . Locate Traps 1 | . 1 . . Proto ID Catalog 1 | . . . 1 Fabricator Hacks . | . . . . Repair Station Hacks . | . . . . Recycling Unit Hacks . | . . . . Scanalyzer . | . . . . Garrison Access Hacks . | . . . . Unauthorized Hacks 10 | . 10 . . Terminals 10 | . 10 . . Botnet 5 | . 5 . . Skim 5 | . 5 . . Fabricators . | . . . . Repair Stations . | . . . . Recycling Units . | . . . . Scanalyzers . | . . . . Garrison Access . | . . . . Data Cores Recovered . | . . . . Used . | . . . . Hacking Detections 3 | . 3 . . Full Trace Events . | . . . . Feedback Events . | . . . . Feedback Blocked . | . . . . Robot Schematics Acquired . | . . . . Robots Built . | . . . . Authchips . | . . . . Time . | . . . . Total Robot Build Rating . | . . . . Part Schematics Acquired 2 | . 2 . . Parts Built . | . . . . Authchips . | . . . . Time . | . . . . Total Part Build Rating . | . . . . Part Studies Acquired . | . . . . Parts Repaired . | . . . . Time . | . . . . Parts Recycled . | . . . . Recycled Matter . | . . . . Retrieved Matter . | . . . . Retrieved Components . | . . . . Parts Scanalyzed . | . . . . Part Schematics Acquired . | . . . . Parts Damaged . | . . . . Bothacking | -11 -10 -10 -10 ------------ Run | Yrd Mat Min Sub Used RIF Installer . | . . . . Robots Hacked . | . . . . Non-combat . | . . . . Combat . | . . . . Robot Hacks Applied . | . . . . Relay Couplers Released . | . . . . Fabnet Peak Effective % . | . . . . Robots Rewired . | . . . . Allies Hacked . | . . . . Hacks Repelled . | . . . . Allies | -11 -10 -10 -10 -------- Run | Yrd Mat Min Sub Total Allies 3 | . . 3 . Largest Group 3 | . . 3 3 Highest-Rated Group 40 | . . 40 40 Highest-Rated Ally 16 | . . 16 16 Total Orders . | . . . . Ally Attacks 9 | . . 9 . Total Damage 98 | . . 98 . Kills 2 | . . 2 . Allies Corrupted . | . . . . Allies Melted . | . . . . Intel | -11 -10 -10 -10 ------- Run | Yrd Mat Min Sub Active Infowar (turns) 4662 | 23 1183 181 3275 Structural 2317 | . . . 2317 Seismic 2345 | 23 1183 181 958 Robot Analysis Total . | . . . . Derelict Logs Recovered 3 | . . 1 2 Drone Launches . | . . . . Drone Recoveries . | . . . . Exploration | -11 -10 -10 -10 ------------- Run | Yrd Mat Min Sub Turns Passed 5841 | 120 1196 1217 3308 Spaces Moved 2537 | 68 420 480 1569 Core 14 | 13 1 . . Treads 1647 | . 307 480 860 Legs 167 | 55 112 . . Wheels 709 | . . . 709 Hover . | . . . . Flight . | . . . . Fastest Speed 50 | 50 120 240 130 Average Speed 200 | 106 206 240 190 Slowest Speed 320 | 120 320 240 320 Overloaded Moves . | . . . . Propulsion Burnouts . | . . . . Robots Hopped . | . . . . Potential Cave-ins . | . . . . Cave-ins Triggered . | . . . . Exploration Rate (%) 57 | 4 71 96 59 Regions Visited 3 Branch Regions 2 Pre-discovered Areas 2 | . 1 . 1 Known Exits Taken . | . . . . Unknown Exits Taken 3 | 1 1 1 . Scrap Searched 4 | . . 1 3 Spaces Dug 12 | . . . 12 Terrain Destroyed 16 | . . . 16 Melee . | . . . . Projectile 16 | . . . 16 AOE . | . . . . Terrain Rammed . | . . . . Walls Destroyed . | . . . . Machines Disabled . | . . . . Actions | -11 -10 -10 -10 --------- Run | Yrd Mat Min Sub Total 3056 | 103 657 522 1774 Wait 244 | 11 139 10 84 Move 2534 | 67 419 479 1569 Hop . | . . . . Pick Up 51 | 12 21 7 11 Fast Attach 13 | 2 9 . 2 Attach 20 | 5 5 3 7 Detach . | . . . . Swap 18 | . 6 4 8 Drop 26 | . 9 5 12 Fire 149 | 6 48 14 81 Melee . | . . . . Ram . | . . . . Kick . | . . . . Crush 1 | . 1 . . Escape Stasis . | . . . . Rewire . | . . . . Trap . | . . . . Miscellaneous . | . . . . Route ------- -11/Scrapyard -10/Materials (discovered 4 exits: *Mat x3 / [*Min]) -10/Mines (discovered 3 exits: *Mat x2 / *Sub) -10/Subcaves (discovered 4 exits: *Mat x2 / Rec / [*Scr]) History --------- Turn | Location | Event 2 | -11/Scrapyard | Met Revision 17 8 | -11/Scrapyard | Discovered new exit (range 16) 121 | -11/Scrapyard | Entered Materials 301 | -10/Materials | Build established: Mutant 485 | -10/Materials | Discovered new exit (range 16) 760 | -10/Materials | Identified exit to Materials 846 | -10/Materials | Learned 2 Storage zone layouts 873 | -10/Materials | Loaded intel: 7 terminal locations 984 | -10/Materials | Learned Storage garrison access intel 1286 | -10/Materials | Discovered new exit (range 6) 1317 | -10/Materials | Entered Mines 1649 | -10/Mines | Core integrity fell below 50% 1955 | -10/Mines | Found a damaged Exp. Sensor Array with a note attached 1960 | -10/Mines | Found Prototype Device 2014 | -10/Mines | Discovered new exit (range 6) 2112 | -10/Mines | Assisted by bots powering up and referring to "LRC-V3" 2138 | -10/Mines | Received a Rocket Launcher from a helpful Derelict 2190 | -10/Mines | Learned 2 Materials zone layouts 2534 | -10/Mines | Entered Subcaves 2534 | -10/Subcaves | Accompanied by 3 allies 2535 | -10/Subcaves | Approached by a straggling Scientist 2535 | -10/Subcaves | Identified exit to Materials 2685 | -10/Subcaves | A swath of the cavern ceiling suddenly collapsed 2816 | -10/Subcaves | Learned location of Zion (-6) 2816 | -10/Subcaves | Met a Zionite searching for "candidates" 2904 | -10/Subcaves | Shifting Twisted Machinery released Sub. Monowheel 3393 | -10/Subcaves | Identified exit to Recycling 3915 | -10/Subcaves | Core integrity fell below 20% 3918 | -10/Subcaves | Scientist uncovered a shortcut to Scraptown 4129 | -10/Subcaves | Ambushed by Subdweller buried in earth 5329 | -10/Subcaves | Visited 4L-MR0's lab 5363 | -10/Subcaves | Found Powered Cannon 5842 | -10/Subcaves | Destroyed by G-47 Trooper with Particle Gun Last Messages --------------- probably tossed aside somewhere as if it were useless junk..." 05426_ System corrupted: Substantial component data lost. 05471_ System corrupted: Component data lost. 05681_ X7-LPX(R): "LEAVESUB!" 05697_ Sub. Machine Gun shoots sparks and powers down. 05708_ X7-LPX(R) destroyed. 05711_ Dropped Lgt. EM Pulse Cannon. 05712_ System corrupted: FCS attempts to trigger Imp. Medium Laser. 05712_ System corrupted: Imp. Medium Laser misfires. 05720_ Subatomizers dissect the Sub. Monowheel. 05726_ Acquired Sub. Machine Gun. 05727_ Acquired 37 matter. 05732_ Dropped Aluminum Leg. 05732_ Acquired Sub. Monowheel. 05733_ Subatomizers dissect the Aluminum Leg. 05738_ Dropped Particle Gun. 05739_ Acquired Scrap Shield. 05746_ GG G44AC K0 TOMWTM6DC|ZW KT:RC# 05746_ Subatomizers dissect the Aluminum Leg. 05792_ Q9-CMD(u) tweaks Twisted Machinery. Map ----- +----------------------------------------------------+ | #########?????????############## #### | | ########???????????######?????## ### ##### | | ##????????????????????????????###### ######## | | ##????????????????????????????##### ####### | | ###??????????????????????????????### ##?##### | | ###??????????????????????????????### ##???### | | ##??????????????????????????????### ###????## | | ##?????????????????????????????#### ####?????? | | ###????????????????????????????#### #####??????? | | ###???????????????????????????#### #####???????? | | ##????????????????????????????### ######??####? | | #?????????????????????????????## "############? | | ??????????????????????????????#######"" ##### ##? | | ??????????????????????????????######## ### ##? | | ???????????????????????????????????## = ##? | | ??????????????????????????????####### ###? | | ??????????????????????????############ ######? | | ?????????????????????????####### ##### #### ?? | | ????????????????????######## #### ## | | ????????????????????####### ### | | ???????????????????### ## g ### ## # | | ???????????????????### g ## ## ## | | ???????????????????## ### ## #### | | ???????????????????## ##### ### ##### | | ???????????????????### ###### < ## ####?? | | ???????????????????### @####?### ###??? | | ???????????????????### ############ ##??? | | ???????????????????## ############ ###??? | | ???????????????????## ## #### ####??? | | ???????????????????### ##### ###???? | | ???????????????????#### ""##### ##???? | | ????????????????????#### """##?# ##???? | | ?????????????????????### """##?## ###???? | | ??????????????????????#####""" ##"""##?#######???? | | ?????????????????????#####";"#####"###??#####????? | | ?????????????????????######;##########???????????? | | ?????????????????????## ";;######??????????????? | | ?????????????????????## ## ####????????????? | | ?????????????????????## ### #####???????????? | | ?????????????????????## ### ####??????????? | | ????????????????????### ## ###??????????? | | ????????????????????### [ ##????#####"? | | ????????????????????## [ = ####??######? | | ????????????????????## &% ###### # ? | | ????????????????????## ] ### ### # ? | | ????????????????????## #### ###? | | #####???????????????## ######### ##?? | | ##??????????????############# ### ##?? | | ######??#####??#######????### ###"? ##?? | | ## #### ####??????????### ## ##??? ?? | +----------------------------------------------------+ Best States ------------- Heat Dissipation 39 Energy Generation 15 Energy Capacity 250 Matter Stores 300 Matter Capacity 300 Sight Range 16 Terrain Scan Density 10 Armor Coverage 150 Evasion (%) 55 Recoil Reduction 2 Item Schematics ----------------- Huge Storage Unit | -10/Materials | Hacked Hcp. Storage Unit | -10/Materials | Hacked Robot Schematics ------------------ None Fabricated ------------ Nothing Repaired ---------- Nothing Studied --------- None Alien Tech Used ----------------- None Achievements -------------- Nice Directions, Buddy You Again Challenges ------------ None Game ------ Seed ReactiveBraceHoverbase Manual? 0 Play Time 00:21:28 Cumulative 210.5 hours Start 2025.12.23 @ 13:18:16 End 2025.12.23 @ 13:38:33 Sessions 1 Manual Loads 0 Difficulty Rogue Special Mode None Game No. 294 Rogue 294 Adventurer 0 Explorer 0 Win Type - Total 3 Types 2/0/0/1/0/0/0/0/0/0 Lore% 73 Gallery% 73 Achievement% 48 Wizard Run 0 Options --------- Layout 0 ASCII 0 Keyboard 0 Movement Mouse Keybinds 0 Fullscreen 1 Font 16/SmallcapsGlow Map View 75x55 Zoom Use 0% Tactical HUD 1 Map Filters NONE Filters NONE Steam 1 RUN: 353c94c0-ba45-4f76-850c-5b7d4234147c